fUST/lending_fUST_20240921
["ID","MTS","AMOUNT","RATE_DAILY","PERIOD"]
[338658635,1726854644024,-500.0,0.00016028,2]
[338658636,1726854644035,-6515.12,0.00016028,2]
[338658637,1726854644044,-606.9,0.00016028,2]
[338658638,1726854644054,-500.0,0.00016028,2]
[338658639,1726854644063,-500.0,0.00016028,2]
[338658640,1726854644072,-500.0,0.00016028,2]
[338658641,1726854644081,-500.0,0.00016028,2]
[338658642,1726854644091,-500.0,0.00016028,2]
[338658643,1726854644102,-521.87,0.00016028,2]
[338658644,1726854644111,-500.0,0.00016028,2]
[338658645,1726854644121,-500.0,0.00016028,2]
[338658646,1726854644130,-446.66185204,0.00016028,2]
[338658647,1726854644139,-500.0,0.00016028,2]
[338658648,1726854644150,-541.83,0.00016028,2]
[338658649,1726854644159,-500.0,0.00016028,2]
[338658650,1726854644169,-835.7,0.00016028,2]
[338658651,1726854644179,-596.23307049,0.00016028,2]
[338658652,1726854644189,-500.0,0.00016028,2]
[338658653,1726854644198,-500.0,0.00016028,2]
[338658654,1726854644207,-500.0,0.00016028,2]
[338658655,1726854644216,-500.0,0.00016028,2]
[338658656,1726854644225,-500.0,0.00016028,2]
[338658657,1726854644235,-500.0,0.00016028,2]
[338658658,1726854644246,-158.62,0.00016028,2]
[338658659,1726854644255,-1780.03,0.00016028,2]
[338658660,1726854644264,-997.46,0.00016028,2]
[338658661,1726854644274,-641.45,0.00016028,2]
[338658662,1726854644284,-500.0,0.00016028,2]
[338658663,1726854644294,-500.0,0.00016028,2]
[338658664,1726854644304,-500.0,0.00016028,2]
[338658665,1726854644313,-500.0,0.00016028,2]
[338658666,1726854644322,-500.0,0.00016028,2]
[338658667,1726854644331,-500.0,0.00016028,2]
[338658668,1726854644340,-500.0,0.00016028,2]
[338658669,1726854644351,-500.0,0.00016028,2]
[338658670,1726854644360,-151.0,0.00016028,2]
[338658671,1726854644369,-236.285436,0.00016028,2]
[338658672,1726854644378,-500.0,0.00016028,2]
[338658673,1726854644387,-1124.21,0.00016028,2]
[338658674,1726854644398,-500.0,0.00016028,2]
[338658675,1726854644409,-219.85098782,0.00016028,2]
[338658676,1726854644418,-500.0,0.00016028,2]
[338658677,1726854644430,-500.0,0.00016028,2]
[338658678,1726854644440,-337.17846631,0.00016028,2]
[338658679,1726854644453,-500.0,0.00016028,2]
[338658680,1726854644462,-500.0,0.00016028,2]
[338658681,1726854644471,-500.0,0.00016028,2]
[338658682,1726854644482,-500.0,0.00016028,2]
[338658683,1726854644495,-500.0,0.00016028,2]
[338658684,1726854644506,-500.0,0.00016028,2]
[338658685,1726854644517,-500.0,0.00016028,2]
[338658686,1726854644528,-500.0,0.00016029,2]
[338658687,1726854644538,-151.0,0.00016029,2]
[338658688,1726854644547,-277.475254,0.00016029,2]
[338658689,1726854644557,-500.0,0.00016029,2]
[338658690,1726854644567,-1672.11,0.00016029,2]
[338658691,1726854644577,-151.0,0.00016029,2]
[338658692,1726854644588,-500.0,0.00016029,2]
[338658693,1726854644609,-151.0,0.00016029,2]
[338658694,1726854644621,-500.0,0.00016029,2]
[338658695,1726854644633,-500.0,0.00016029,2]
[338658696,1726854644644,-547.29,0.00016029,2]
[338658697,1726854644654,-151.0,0.00016029,2]
[338658698,1726854644664,-558.17,0.00016029,2]
[338658699,1726854644674,-500.0,0.00016029,2]
[338658700,1726854644684,-151.0,0.00016029,2]
[338658701,1726854644694,-151.0,0.00016029,2]
[338658702,1726854644705,-822.1,0.00016029,2]
[338658703,1726854644716,-151.0,0.00016029,2]
[338658704,1726854644728,-151.0,0.00016029,2]
[338658705,1726854644739,-576.79,0.00016029,2]
[338658706,1726854644751,-559.38,0.00016029,2]
[338658707,1726854644761,-151.0,0.00016029,2]
[338658708,1726854644770,-1168.65,0.00016029,2]
[338658709,1726854644780,-151.0,0.00016029,2]
[338658710,1726854644790,-434.423776,0.00016029,2]
[338658711,1726854644801,-434.423776,0.00016029,2]
[338658712,1726854644813,-500.0,0.00016029,2]
[338658713,1726854644824,-655.56,0.00016029,2]
[338658714,1726854644836,-564.15,0.00016029,2]
[338658715,1726854644847,-344.790615,0.00016029,2]
[338658716,1726854644857,-344.790615,0.00016029,2]
[338658717,1726854644866,-500.0,0.00016029,2]
[338658718,1726854644876,-500.0,0.00016029,2]
[338658719,1726854644885,-500.0,0.00016029,2]
[338658720,1726854644894,-500.0,0.00016029,2]
[338658721,1726854644904,-500.0,0.00016029,2]
[338658722,1726854644914,-500.0,0.00016029,2]
[338658723,1726854644925,-500.0,0.00016029,2]
[338658724,1726854644935,-500.0,0.00016029,2]
[338658725,1726854644944,-500.0,0.00016029,2]
[338658726,1726854644955,-500.0,0.00016029,2]
[338658727,1726854644964,-500.0,0.00016029,2]
[338658728,1726854644973,-500.0,0.00016029,2]
[338658729,1726854644983,-500.0,0.00016029,2]
[338658730,1726854644994,-500.0,0.0001603,2]
[338658731,1726854645004,-556.85,0.0001603,2]
[338658732,1726854645015,-500.0,0.0001603,2]
[338658733,1726854645025,-500.0,0.0001603,2]
[338658734,1726854645037,-500.0,0.0001603,2]
[338658735,1726854645047,-500.0,0.0001603,2]
[338658736,1726854645056,-500.0,0.0001603,2]
[338658737,1726854645065,-500.0,0.0001603,2]
[338658738,1726854645077,-1032.32,0.0001603,2]
[338658739,1726854645087,-659.76,0.0001603,2]
[338658740,1726854645098,-500.0,0.0001603,2]
[338658741,1726854645111,-500.0,0.0001603,2]
[338658742,1726854645120,-500.0,0.0001603,2]
[338658743,1726854645130,-661.24,0.0001603,2]
[338658744,1726854645139,-500.0,0.0001603,2]
[338658745,1726854645149,-500.0,0.0001603,2]
[338658746,1726854645158,-500.0,0.0001603,2]
[338658747,1726854645168,-565.36,0.0001603,2]
[338658748,1726854645178,-400.07004362,0.0001603,2]
[338658749,1726854645187,-500.0,0.0001603,2]
[338658750,1726854645198,-397.285778,0.00016065,2]
[338658751,1726854645208,-397.285778,0.00016065,2]
[338658752,1726854645217,-582.602582,0.00016065,2]
[338658753,1726854645227,-582.602582,0.00016065,2]
[338658754,1726854645237,-151.0,0.00016065,2]
[338658755,1726854645248,-500.0,0.00016073,2]
[338658756,1726854645258,-500.0,0.00016073,2]
[338658757,1726854645268,-500.0,0.00016073,2]
[338658758,1726854645278,-500.0,0.00016073,2]
[338658759,1726854645287,-500.0,0.00016073,2]
[338658760,1726854645296,-500.0,0.00016075,2]
[338658761,1726854645306,-500.0,0.00016075,2]
[338658762,1726854645316,-500.0,0.00016075,2]
[338658763,1726854645325,-686.66,0.00016075,2]
[338658764,1726854645334,-500.0,0.00016075,2]
[338658765,1726854645344,-607.97112031,0.00016075,2]
[338658766,1726854645353,-500.0,0.00016075,2]
[338658767,1726854645364,-500.0,0.00016075,2]
[338658768,1726854645373,-500.0,0.00016075,2]
[338658769,1726854645383,-500.0,0.00016075,2]
[338658770,1726854645393,-652.94,0.00016075,2]
[338658771,1726854645403,-500.0,0.00016075,2]
[338658772,1726854645413,-500.0,0.00016075,2]
[338658773,1726854645422,-500.0,0.00016075,2]
[338658774,1726854645431,-500.0,0.00016075,2]
[338658775,1726854645443,-500.0,0.00016075,2]
[338658776,1726854645454,-539.99,0.00016075,2]
[338658777,1726854645464,-680.47,0.00016075,2]
[338658778,1726854645473,-517.84537314,0.00016075,2]
[338658779,1726854645483,-500.0,0.00016075,2]
[338658780,1726854645492,-500.0,0.00016075,2]
[338658781,1726854645503,-500.0,0.00016075,2]
[338658782,1726854645512,-500.0,0.00016075,2]
[338658783,1726854645522,-1183.82,0.00016075,2]
[338658784,1726854645531,-500.0,0.00016075,2]
[338658785,1726854645541,-500.0,0.00016075,2]
[338658786,1726854645550,-500.0,0.00016075,2]
[338658787,1726854645560,-500.0,0.00016075,2]
[338658788,1726854645569,-500.0,0.00016075,2]
[338658789,1726854645579,-500.0,0.00016075,2]
[338658790,1726854645588,-500.0,0.00016075,2]
[338658791,1726854645598,-500.0,0.00016075,2]
[338658792,1726854645607,-237.68,0.00016075,2]
[338658793,1726854645617,-895.19,0.00016075,2]
[338658794,1726854645627,-500.0,0.00016075,2]
[338658795,1726854645636,-500.0,0.00016075,2]
[338658796,1726854645645,-197.849603,0.00016075,2]
[338658797,1726854645659,-614.78,0.00016075,2]
[338658798,1726854645669,-500.0,0.00016075,2]
[338658799,1726854645679,-151.0,0.00016075,2]
[338658800,1726854645689,-500.0,0.00016075,2]
[338658801,1726854645699,-622.56,0.00016075,2]
[338658803,1726854645709,-500.0,0.00016075,2]
[338658805,1726854645718,-500.0,0.00016075,2]
[338658806,1726854645728,-151.0,0.00016075,2]
[338658808,1726854645738,-151.0,0.00016075,2]
[338658809,1726854645748,-500.0,0.00016075,2]
[338658810,1726854645758,-500.0,0.00016075,2]
[338658812,1726854645768,-151.0,0.00016075,2]
[338658813,1726854645777,-500.0,0.00016075,2]
[338658814,1726854645786,-430.72399219,0.00016075,2]
[338658815,1726854645795,-151.0,0.00016075,2]
[338658816,1726854645805,-500.0,0.00016075,2]
[338658817,1726854645815,-745.94,0.00016075,2]
[338658819,1726854645824,-246.59710641,0.00016075,2]
[338658820,1726854645834,-645.59,0.00016075,2]
[338658821,1726854645843,-2418.69,0.00016075,2]
[338658822,1726854645852,-968.09,0.00016075,2]
[338658823,1726854645862,-500.0,0.00016075,2]
[338658824,1726854645871,-1030.34,0.00016075,2]
[338658825,1726854645880,-500.0,0.00016075,2]
[338658826,1726854645889,-792.9,0.00016075,2]
[338658827,1726854645899,-1015.27,0.00016075,2]
[338658828,1726854645908,-500.0,0.00016075,2]
[338658829,1726854645917,-615.22,0.00016075,2]
[338658830,1726854645927,-500.0,0.00016075,2]
[338658832,1726854645936,-500.0,0.00016075,2]
[338658834,1726854645946,-587.27,0.00016075,2]
[338658835,1726854645955,-500.0,0.00016075,2]
[338658837,1726854645964,-936.5,0.00016075,2]
[338658838,1726854645973,-500.0,0.00016075,2]
[338658839,1726854645983,-500.0,0.00016075,2]
[338658840,1726854645993,-543.82,0.00016075,2]
[338658841,1726854646003,-500.0,0.00016075,2]
[338658842,1726854646013,-151.0,0.00016075,2]
[338658843,1726854646023,-500.0,0.00016075,2]
[338658844,1726854646032,-151.0,0.00016075,2]
[338658845,1726854646042,-500.0,0.00016075,2]
[338658847,1726854646051,-647.86,0.00016075,2]
[338658848,1726854646061,-500.0,0.00016075,2]
[338658849,1726854646070,-500.0,0.00016075,2]
[338658850,1726854646080,-500.0,0.00016075,2]
[338658851,1726854646089,-500.0,0.00016075,2]
[338658852,1726854646098,-500.0,0.00016095,2]
[338658854,1726854646110,-500.0,0.00016095,2]
[338658855,1726854646119,-500.0,0.00016095,2]
[338658856,1726854646129,-500.0,0.00016095,2]
[338658857,1726854646138,-500.0,0.00016095,2]
[338658858,1726854646149,-500.0,0.00016095,2]
[338658859,1726854646158,-382.71765259,0.00016095,2]
[338658860,1726854646167,-151.0,0.00016095,2]
[338658861,1726854646176,-151.0,0.00016095,2]
[338658862,1726854646186,-231.906469,0.00016095,2]
[338658863,1726854646197,-231.906469,0.00016095,2]
[338658864,1726854646207,-1000.0,0.00016163,2]
[338658865,1726854646218,-500.0,0.00016302,2]
[338658866,1726854646229,-500.0,0.00016302,2]
[338658867,1726854646240,-520.94,0.00016302,2]
[338658868,1726854646253,-500.0,0.00016302,2]
[338658869,1726854646264,-838.58,0.00016302,2]
[338658870,1726854646274,-45338.23,0.00016302,2]
[338658871,1726854646283,-500.0,0.00016302,2]
[338658872,1726854646292,-6515.12,0.00016302,2]
[338658873,1726854646302,-606.9,0.00016302,2]
[338658874,1726854646311,-500.0,0.00016302,2]
[338658875,1726854646321,-500.0,0.00016302,2]
[338658876,1726854646331,-500.0,0.00016302,2]
[338658877,1726854646340,-500.0,0.00016302,2]
[338658878,1726854646349,-521.87,0.00016302,2]
[338658879,1726854646359,-468.59729255,0.00016302,2]
[338658880,1726854646368,-500.0,0.00016302,2]
[338658881,1726854646378,-541.83,0.00016302,2]
[338658882,1726854646387,-500.0,0.00016302,2]
[338658883,1726854646398,-835.7,0.00016302,2]
[338658884,1726854646407,-500.0,0.00016302,2]
[338658885,1726854646419,-500.0,0.00016302,2]
[338658886,1726854646430,-500.0,0.00016302,2]
[338658887,1726854646441,-500.0,0.00016302,2]
[338658888,1726854646451,-500.0,0.00016302,2]
[338658889,1726854646462,-1780.03,0.00016302,2]
[338658890,1726854646474,-997.46,0.00016302,2]
[338658891,1726854646484,-641.45,0.00016302,2]
[338658892,1726854646494,-500.0,0.00016302,2]
[338658893,1726854646504,-500.0,0.00016302,2]
[338658894,1726854646514,-500.0,0.00016302,2]
[338658895,1726854646524,-500.0,0.00016302,2]
[338658896,1726854646533,-500.0,0.00016302,2]
[338658897,1726854646543,-500.0,0.00016302,2]
[338658898,1726854646554,-500.0,0.00016302,2]
[338658899,1726854646564,-151.0,0.00016302,2]
[338658900,1726854646574,-500.0,0.00016302,2]
[338658901,1726854646586,-1124.21,0.00016302,2]
[338658902,1726854646597,-500.0,0.00016302,2]
[338658903,1726854646608,-500.0,0.00016302,2]
[338658904,1726854646619,-500.0,0.00016302,2]
[338658905,1726854646629,-500.0,0.00016302,2]
[338658906,1726854646640,-500.0,0.00016302,2]
[338658907,1726854646652,-500.0,0.00016302,2]
[338658908,1726854646662,-500.0,0.00016302,2]
[338658909,1726854646672,-500.03222871,0.00016302,2]
[338658910,1726854646681,-500.0,0.00016303,2]
[338658911,1726854646691,-500.0,0.00016303,2]
[338658912,1726854646701,-1672.11,0.00016303,2]
[338658913,1726854646711,-500.0,0.00016303,2]
[338658914,1726854646721,-500.0,0.00016303,2]
[338658915,1726854646730,-221.3245341,0.00016303,2]
[338658916,1726854646740,-547.29,0.00016303,2]
[338658917,1726854646751,-151.0,0.00016303,2]
[338658918,1726854646761,-558.17,0.00016303,2]
[338658919,1726854646770,-500.0,0.00016303,2]
[338658920,1726854646780,-822.1,0.00016303,2]
[338658921,1726854646789,-576.79,0.00016303,2]
[338658922,1726854646798,-559.38,0.00016303,2]
[338658923,1726854646808,-151.0,0.00016303,2]
[338658924,1726854646817,-1168.65,0.00016303,2]
[338658925,1726854646827,-184.96654,0.00016303,2]
[338658926,1726854646837,-434.423776,0.00016303,2]
[338658927,1726854646846,-434.423776,0.00016303,2]
[338658928,1726854646856,-500.0,0.00016303,2]
[338658929,1726854646865,-655.56,0.00016303,2]
[338658930,1726854646875,-564.15,0.00016303,2]
[338658931,1726854646884,-344.790615,0.00016303,2]
[338658932,1726854646894,-344.790615,0.00016303,2]
[338658933,1726854646903,-500.0,0.00016303,2]
[338658934,1726854646913,-500.0,0.00016303,2]
[338658935,1726854646923,-500.0,0.00016303,2]
[338658936,1726854646932,-500.0,0.00016303,2]
[338658937,1726854646942,-500.0,0.00016303,2]
[338658938,1726854646952,-500.0,0.00016303,2]
[338658939,1726854646961,-500.0,0.00016303,2]
[338658940,1726854646971,-500.0,0.00016303,2]
[338658941,1726854646981,-500.0,0.00016303,2]
[338658942,1726854646990,-500.0,0.00016303,2]
[338658943,1726854647000,-500.0,0.00016303,2]
[338658944,1726854647010,-500.0,0.00016303,2]
[338658945,1726854647020,-500.0,0.00016303,2]
[338658946,1726854647030,-500.0,0.00016304,2]
[338658947,1726854647039,-556.85,0.00016304,2]
[338658948,1726854647048,-500.0,0.00016304,2]
[338658949,1726854647058,-397.285778,0.00016304,2]
[338658950,1726854647067,-397.285778,0.00016304,2]
[338658951,1726854647076,-582.602582,0.00016304,2]
[338658952,1726854647085,-582.602582,0.00016304,2]
[338658953,1726854647095,-500.0,0.00016304,2]
[338658954,1726854647107,-152.466372,0.00016304,2]
[338658955,1726854647116,-407.90742919,0.00016304,2]
[338658956,1726854647496,-500.0,0.00015755,2]
[338658957,1726854647505,-500.0,0.00015801,2]
[338658958,1726854647515,-500.0,0.00016028,2]
[338658959,1726854647524,-500.0,0.00016302,2]
[338658960,1726854647533,-92.09257081,0.00016304,2]
[338658961,1726854647542,-500.0,0.00016304,2]
[338658962,1726854647552,-500.0,0.00016304,2]
[338658963,1726854647562,-1032.32,0.00016304,2]
[338658964,1726854647571,-659.76,0.00016304,2]
[338658965,1726854647580,-500.0,0.00016304,2]
[338658966,1726854647590,-500.0,0.00016304,2]
[338658967,1726854647599,-500.0,0.00016304,2]
[338658968,1726854647608,-661.24,0.00016304,2]
[338658969,1726854647618,-500.0,0.00016304,2]
[338658970,1726854647627,-248.10241989,0.00016304,2]
[338658971,1726854647637,-500.0,0.00016304,2]
[338658972,1726854647646,-565.36,0.00016304,2]
[338658973,1726854647655,-500.0,0.00016304,2]
[338658974,1726854647664,-500.0,0.00016349,2]
[338658975,1726854647673,-213.822372,0.00016349,2]
[338658976,1726854647682,-686.66,0.00016349,2]
[338658977,1726854647691,-500.0,0.00016349,2]
[338658978,1726854647701,-151.0,0.00016349,2]
[338658979,1726854647711,-170.33781945,0.00016349,2]
[338658980,1726854647719,-652.94,0.00016349,2]
[338658981,1726854647729,-151.0,0.00016349,2]
[338658982,1726854647739,-500.0,0.00016349,2]
[338658983,1726854647749,-500.0,0.00016349,2]
[338658984,1726854647758,-500.0,0.00016349,2]
[338658985,1726854647767,-539.99,0.00016349,2]
[338658986,1726854647776,-680.47,0.00016349,2]
[338658987,1726854647785,-500.0,0.00016349,2]
[338658988,1726854647794,-500.0,0.00016349,2]
[338658989,1726854647803,-952.67701516,0.00016349,2]
[338658990,1726854647815,-231.14298484,0.00016349,2]
[338658991,1726854647824,-500.0,0.00016349,2]
[338658992,1726854647833,-500.0,0.00016349,2]
[338658993,1726854647843,-385.58224918,0.00016349,2]
[338658994,1726854647852,-500.0,0.00016349,2]
[338658995,1726854647861,-500.0,0.00016349,2]
[338658996,1726854647871,-500.0,0.00016349,2]
[338658997,1726854647880,-500.0,0.00016349,2]
[338658998,1726854647889,-500.0,0.00016349,2]
[338658999,1726854647898,-237.68,0.00016349,2]
[338659000,1726854647907,-895.19,0.00016349,2]
[338659001,1726854647916,-500.0,0.00016349,2]
[338659002,1726854647925,-500.0,0.00016349,2]
[338659003,1726854647934,-614.78,0.00016349,2]
[338659004,1726854647943,-500.0,0.00016349,2]
[338659005,1726854647952,-500.0,0.00016349,2]
[338659006,1726854647962,-622.56,0.00016349,2]
[338659007,1726854647971,-500.0,0.00016349,2]
[338659008,1726854647980,-500.0,0.00016349,2]
[338659009,1726854647989,-500.0,0.00016349,2]
[338659010,1726854648001,-500.0,0.00016349,2]
[338659011,1726854648011,-500.0,0.00016349,2]
[338659012,1726854648020,-745.94,0.00016349,2]
[338659013,1726854648030,-645.59,0.00016349,2]
[338659014,1726854648039,-2418.69,0.00016349,2]
[338659015,1726854648049,-968.09,0.00016349,2]
[338659016,1726854648058,-500.0,0.00016349,2]
[338659017,1726854648067,-1030.34,0.00016349,2]
[338659018,1726854648076,-500.0,0.00016349,2]
[338659019,1726854648085,-792.9,0.00016349,2]
[338659020,1726854648095,-1015.27,0.00016349,2]
[338659021,1726854648106,-500.0,0.00016349,2]
[338659022,1726854648116,-615.22,0.00016349,2]
[338659023,1726854648125,-500.0,0.00016349,2]
[338659024,1726854648134,-500.0,0.00016349,2]
[338659025,1726854648146,-587.27,0.00016349,2]
[338659026,1726854648155,-500.0,0.00016349,2]
[338659027,1726854648165,-936.5,0.00016349,2]
[338659028,1726854648175,-500.0,0.00016349,2]
[338659029,1726854648184,-500.0,0.00016349,2]
[338659030,1726854648193,-543.82,0.00016349,2]
[338659031,1726854648203,-500.0,0.00016349,2]
[338659032,1726854648212,-500.0,0.00016349,2]
[338659033,1726854648221,-500.0,0.00016349,2]
[338659034,1726854648231,-647.86,0.00016349,2]
[338659035,1726854648240,-500.0,0.00016349,2]
[338659036,1726854648251,-500.0,0.00016349,2]
[338659037,1726854648261,-500.0,0.00016349,2]
[338659038,1726854648271,-500.0,0.00016349,2]
[338659039,1726854648280,-619.38362957,0.00016369,2]
[338659040,1726854648289,-500.0,0.00016369,2]
[338659041,1726854648298,-500.0,0.00016369,2]
[338659042,1726854648308,-155.38962,0.00016369,2]
[338659043,1726854648317,-151.0,0.00016369,2]
[338659044,1726854648327,-151.0,0.00016369,2]
[338659045,1726854648336,-151.0,0.00016369,2]
[338659046,1726854648346,-151.0,0.00016369,2]
[338659047,1726854648356,-151.0,0.00016369,2]
[338659048,1726854648365,-151.0,0.00016369,2]
[338659049,1726854648375,-151.0,0.00016369,2]
[338659050,1726854648385,-151.0,0.00016369,2]
[338659051,1726854648396,-231.906469,0.00016369,2]
[338659052,1726854648405,-231.906469,0.00016369,2]
[338659053,1726854648414,-3000.0,0.000164,2]
[338659054,1726854648424,-3000.0,0.0001641,2]
[338659055,1726854648434,-3000.0,0.0001642,2]
[338659056,1726854648444,-151.0,0.00016428,2]
[338659057,1726854648454,-481.067744,0.00016428,2]
[338659058,1726854648463,-481.067744,0.00016428,2]
[338659059,1726854648472,-151.0,0.00016428,2]
[338659060,1726854648482,-151.0,0.00016428,2]
[338659061,1726854648491,-151.0,0.00016428,2]
[338659062,1726854648501,-3000.0,0.0001643,2]
[338659063,1726854648510,-500.0,0.00016436,2]
[338659064,1726854648519,-8000.0,0.00016437,2]
[338659065,1726854648529,-202.42,0.00016438,2]
[338659066,1726854648538,-202.42,0.00016438,2]
[338659067,1726854648550,-202.42,0.00016438,2]
[338659068,1726854648560,-151.0,0.00016438,2]
[338659069,1726854648570,-151.0,0.00016438,2]
[338659070,1726854648581,-3000.0,0.0001644,2]
[338659071,1726854648591,-500.0,0.00016446,2]
[338659072,1726854648602,-3000.0,0.0001645,2]
[338659073,1726854648611,-3000.0,0.0001646,2]
[338659074,1726854648621,-3000.0,0.0001647,2]
[338659075,1726854648630,-3000.0,0.0001648,2]
[338659076,1726854648639,-3000.0,0.0001649,2]
[338659077,1726854648648,-3000.0,0.000165,2]
[338659078,1726854648658,-3000.0,0.0001651,2]
[338659079,1726854648667,-7139.2745635,0.00016518,2]
[338659080,1726854648676,-3000.0,0.0001652,2]
[338659081,1726854648686,-151.0,0.0001652,2]
[338659082,1726854648695,-3000.0,0.0001653,2]
[338659083,1726854648707,-3000.0,0.0001654,2]
[338659084,1726854648717,-3000.0,0.0001655,2]
[338659085,1726854648728,-3000.0,0.0001656,2]
[338659086,1726854648739,-151.0,0.0001656,2]
[338659087,1726854648749,-344.790615,0.0001656,2]
[338659088,1726854648759,-344.790615,0.0001656,2]
[338659089,1726854648769,-151.0,0.0001656,2]
[338659090,1726854648778,-151.0,0.0001656,2]
[338659091,1726854648787,-3000.0,0.0001657,2]
[338659092,1726854648796,-500.0,0.00016576,2]
[338659093,1726854648805,-500.0,0.00016576,2]
[338659094,1726854648814,-520.94,0.00016576,2]
[338659095,1726854648823,-500.0,0.00016576,2]
[338659096,1726854648833,-838.58,0.00016576,2]
[338659097,1726854648842,-45338.23,0.00016576,2]
[338659098,1726854648851,-500.0,0.00016576,2]
[338659099,1726854648860,-6515.12,0.00016576,2]
[338659100,1726854648870,-606.9,0.00016576,2]
[338659101,1726854648879,-500.0,0.00016576,2]
[338659102,1726854648888,-500.0,0.00016576,2]
[338659103,1726854648897,-500.0,0.00016576,2]
[338659104,1726854648907,-500.0,0.00016576,2]
[338659105,1726854648916,-521.87,0.00016576,2]
[338659106,1726854648926,-202.42,0.00016576,2]
[338659107,1726854648935,-500.0,0.00016576,2]
[338659108,1726854648944,-541.83,0.00016576,2]
[338659109,1726854648953,-500.0,0.00016576,2]
[338659110,1726854648963,-835.7,0.00016576,2]
[338659111,1726854648972,-151.0,0.00016576,2]
[338659112,1726854648982,-500.0,0.00016576,2]
[338659113,1726854648992,-151.0,0.00016576,2]
[338659114,1726854649002,-500.0,0.00016576,2]
[338659115,1726854649011,-500.0,0.00016576,2]
[338659116,1726854649022,-500.0,0.00016576,2]
[338659117,1726854649032,-577.96072631,0.00016576,2]
[338659118,1726854649042,-1780.03,0.00016576,2]
[338659119,1726854649052,-997.46,0.00016576,2]
[338659120,1726854649061,-231.906469,0.00016576,2]
[338659121,1726854649071,-641.45,0.00016576,2]
[338659122,1726854649079,-231.906469,0.00016576,2]
[338659123,1726854649089,-500.0,0.00016576,2]
[338659124,1726854649103,-500.0,0.00016576,2]
[338659125,1726854649114,-329.35084229,0.00016576,2]
[338659126,1726854649125,-500.0,0.00016576,2]
[338659127,1726854649135,-500.0,0.00016576,2]
[338659128,1726854649146,-500.0,0.00016576,2]
[338659129,1726854649156,-500.0,0.00016576,2]
[338659130,1726854649165,-1124.21,0.00016576,2]
[338659131,1726854649177,-500.0,0.00016576,2]
[338659132,1726854649186,-500.0,0.00016576,2]
[338659133,1726854649196,-500.0,0.00016576,2]
[338659134,1726854649205,-500.0,0.00016576,2]
[338659135,1726854649215,-500.0,0.00016576,2]
[338659136,1726854649224,-500.0,0.00016576,2]
[338659137,1726854649233,-500.0,0.00016576,2]
[338659138,1726854649245,-500.0,0.00016576,2]
[338659139,1726854649255,-500.0,0.00016577,2]
[338659140,1726854649264,-500.0,0.00016577,2]
[338659141,1726854649273,-1672.11,0.00016577,2]
[338659142,1726854649283,-500.0,0.00016577,2]
[338659143,1726854649292,-500.0,0.00016577,2]
[338659144,1726854649301,-547.29,0.00016577,2]